bitfinex/quotes_ETHUSD_20220119
["timestamp","ask_amount","ask_price","bid_price","bid_amount"]
[1642592080986,0.21643828,3108.1,3107.7,2.73839636]
[1642592081185,0.1285,3108.1,3107.7,0.00170527]
[1642592081383,0.1285,3108.1,3107.8,0.00113685]
[1642592081583,0.1285,3108.1,3107.6,0.1285]
[1642592081584,0.1285,3108.1,3107.7,0.00170527]
[1642592081785,0.8047,3108.0,3107.7,0.00170527]
[1642592081988,0.1287,3107.9,3107.7,0.00170527]
[1642592082988,3.50113685,3108.2,3107.7,0.00170527]
[1642592082989,0.1287,3108.1,3107.7,0.00170527]
[1642592083234,0.8046941,3107.9,3107.7,0.00170527]
[1642592083435,4.2287,3107.8,3107.7,0.00170527]
[1642592083639,4.2287,3107.8,3107.6,5.27e-06]
[1642592083640,4.5287,3107.8,3107.6,5.27e-06]
[1642592084036,0.4287,3107.8,3107.6,5.27e-06]
[1642592084436,1.23348,3107.8,3107.6,5.27e-06]
[1642592085636,0.4287,3107.8,3107.6,5.27e-06]
[1642592088390,0.3,3107.8,3107.6,5.27e-06]
[1642592088588,0.4287,3108.0,3107.6,5.27e-06]
[1642592088788,0.1287,3108.0,3107.6,5.27e-06]
[1642592088989,0.00113685,3107.9,3107.6,5.27e-06]
[1642592089191,0.00113685,3107.9,3107.5,0.80457]
[1642592089390,0.00113685,3107.9,3107.6,3.03687695]
[1642592089590,0.00113685,3107.9,3107.7,2.73687695]
[1642592090392,0.00113685,3107.9,3107.6,0.3]
[1642592090838,0.00113685,3107.9,3107.7,2.73675582]
[1642592092243,0.80576095,3107.9,3107.3,1.7378]
[1642592092442,0.80576095,3107.9,3107.4,2.73686189]
[1642592092443,0.1287,3107.8,3107.4,2.73686189]
[1642592092643,0.1287,3107.8,3107.4,2.73856716]
[1642592092644,0.4287,3107.8,3107.4,2.73856716]
[1642592093645,0.4287,3107.8,3107.5,0.80463]
[1642592093842,0.4287,3107.8,3107.6,2.73686189]
[1642592094780,0.4287,3107.8,3107.6,0.3]
[1642592096088,0.80576095,3107.9,3107.6,0.3]
[1642592096289,0.00113685,3107.9,3107.7,2.7367875]
[1642592097092,0.00113685,3107.9,3107.6,1.10454]
[1642592097291,0.00113685,3107.9,3107.6,0.3]
[1642592097491,0.00113685,3107.9,3107.7,2.73680319]
[1642592098140,0.00113685,3107.9,3107.6,0.3]
[1642592098340,0.00113685,3107.9,3107.5,1.10463]
[1642592098542,0.00113685,3107.9,3107.6,2.73684718]
[1642592099443,0.00113685,3107.9,3107.6,3.54144718]
[1642592099644,0.00113685,3107.9,3107.7,3.03684718]
[1642592099842,0.00113685,3107.9,3107.8,2.73684718]
[1642592101346,0.00113685,3107.9,3107.7,0.3]
[1642592101545,0.1287,3107.8,3107.5,0.3]
[1642592101744,0.1287,3107.8,3107.6,2.73675604]
[1642592101987,0.1287,3107.8,3107.6,0.3]
[1642592102190,0.1287,3107.8,3107.4,0.00170527]
[1642592102387,0.9333852,3107.8,3107.4,2.73856031]
[1642592102588,1.2333852,3107.8,3107.4,2.73856031]
[1642592102889,1.2333852,3107.8,3107.5,2.73799189]
[1642592103090,1.2333852,3107.8,3107.6,2.73685504]
[1642592104793,0.4287,3107.8,3107.6,2.73685504]
[1642592105835,1.2333402,3107.8,3107.6,2.73685504]
[1642592107039,0.4287,3107.8,3107.6,2.73685504]
[1642592108841,0.3,3107.8,3107.6,2.73685504]
[1642592109042,0.30113685,3107.9,3107.6,2.73685504]
[1642592109240,0.00113685,3107.9,3107.6,2.73685504]
[1642592109983,0.8046412,3107.8,3107.6,2.73685504]
[1642592110384,1.1046412,3107.8,3107.6,2.73685504]
[1642592112989,1.1046412,3107.8,3107.5,0.00113685]
[1642592112990,1.1413416,3107.8,3107.5,0.00113685]
[1642592113233,1.3203,3107.7,3107.5,0.00113685]
[1642592113436,0.8048858,3107.4,3106.9,2.74187075]
[1642592113635,0.1287,3107.3,3107.0,2.74130232]
[1642592113836,0.1287,3107.3,3107.1,2.73732336]
[1642592114035,0.1287,3107.3,3107.1,2.7407339]
[1642592114237,0.1287,3107.3,3107.2,2.74016548]
[1642592114437,1.1048858,3107.4,3107.2,0.00284212]
[1642592114640,1.1048858,3107.4,3107.2,0.30284212]
[1642592114839,1.1048858,3107.4,3107.3,2.73732336]
[1642592115040,6.0335858,3107.4,3107.3,0.30227369]
[1642592115238,6.0335858,3107.4,3107.3,0.00227369]
[1642592115639,6.0335858,3107.4,3107.2,0.00284212]
[1642592115640,6.9048858,3107.4,3107.2,0.00284212]
[1642592115840,5.9048858,3107.4,3107.3,0.00227369]
[1642592116044,5.9048858,3107.4,3107.2,2.73743714]
[1642592116238,5.9048858,3107.4,3107.3,0.00227369]
[1642592116438,6.7097858,3107.4,3107.3,0.00227369]
[1642592116640,7.7097858,3107.4,3107.3,0.00227369]
[1642592117604,7.8384858,3107.4,3107.3,0.00227369]
[1642592117803,7.7097858,3107.4,3107.3,0.00227369]
[1642592118203,2.9097858,3107.4,3107.2,2.68971083]
[1642592118405,2.9097858,3107.4,3106.4,0.80489]
[1642592118608,1.9097858,3107.4,3106.4,1.90974]
[1642592118805,1.1048858,3107.4,3106.5,0.00454739]
[1642592119004,4.3048858,3107.4,3106.5,1.42681877]
[1642592119209,3.5,3107.4,3106.5,3.0488135]
[1642592119404,3.5,3107.4,3106.6,0.00397897]
[1642592119605,3.5,3107.4,3106.6,1.10876897]
[1642592119907,3.5,3107.4,3106.7,0.00341054]
[1642592120106,3.5,3107.4,3106.8,0.80475]
[1642592120307,3.5,3107.4,3106.7,0.00341054]
[1642592120308,1.0,3107.3,3106.7,0.00341054]
[1642592120507,0.1287,3107.2,3106.9,0.0022737]
[1642592120743,0.1287,3107.2,3106.7,0.00341054]
[1642592120942,0.80494,3107.1,3106.7,0.00341054]
[1642592121148,0.1287,3107.0,3106.7,0.00341054]
[1642592121542,0.1287,3107.1,3106.7,0.00341054]
[1642592121744,0.1287,3107.2,3106.7,0.00341054]
[1642592121942,0.1287,3107.2,3106.4,0.00511581]
[1642592122143,0.1287,3107.2,3106.4,0.30511581]
[1642592122346,0.933558,3107.2,3106.4,0.30511581]
[1642592122546,3.42679372,3107.1,3106.7,0.3]
[1642592122743,0.1287,3107.0,3106.4,0.00511581]
[1642592122947,1.1287,3107.0,3106.8,0.00284212]
[1642592123144,1.1287,3107.0,3106.4,0.00511581]
[1642592123145,0.1287,3107.0,3106.4,0.00511581]
[1642592123346,0.9337303,3107.0,3106.4,0.00511581]
[1642592123545,0.9337303,3107.0,3106.4,0.81001581]
[1642592123546,0.3,3106.9,3106.4,0.81001581]
[1642592123750,0.1287,3106.8,3106.4,0.81001581]
[1642592123947,0.1287,3107.2,3106.4,0.81001581]
[1642592124591,0.933555,3107.2,3106.4,0.81001581]
[1642592124792,0.1287,3107.2,3106.4,0.81001581]
[1642592125394,1.7385485,3107.2,3106.4,0.00511581]
[1642592125594,0.3,3107.1,3106.4,0.00511581]
[1642592125892,1.7385485,3107.2,3106.4,0.00511581]
[1642592126093,0.8049057,3107.0,3106.4,0.00511581]
[1642592126300,0.9336057,3107.0,3106.4,0.00511581]
[1642592126803,0.8049057,3107.0,3106.4,0.00511581]
[1642592126993,0.3,3106.9,3106.4,0.00511581]
[1642592127195,0.804954,3106.8,3106.4,0.00511581]
[1642592127394,0.3,3106.7,3106.4,0.00511581]
[1642592128643,0.9337873,3106.6,3106.4,0.00511581]
[1642592128845,0.80508,3106.5,3106.4,0.00511581]
[1642592129042,1.10508,3106.5,3106.4,0.00511581]
[1642592129440,3.95508,3106.5,3106.4,0.00511581]
[1642592131044,8.48650203,3106.5,3106.4,0.00511581]
[1642592131643,5.08378,3106.5,3106.4,0.00511581]
[1642592133292,5.08378,3106.5,3105.1,1.55682535]
[1642592133293,8.41043,3106.4,3105.1,1.55682535]
[1642592133491,0.80533,3105.8,3105.1,0.1287]
[1642592133689,0.80533,3105.8,3105.2,0.00682109]
[1642592133690,0.1288,3105.7,3105.2,0.00682109]
[1642592134393,0.8052722,3105.6,3105.2,0.00682109]
[1642592134591,0.80537,3105.4,3105.2,0.00682109]
[1642592134991,1.10537,3105.4,3105.2,0.00682109]
[1642592135392,2.10537,3105.4,3105.2,0.00682109]
[1642592135639,1.105346,3105.4,3105.2,0.00682109]
[1642592136037,0.3,3105.4,3105.2,0.00682109]
[1642592136257,0.3,3105.4,3104.7,0.0096632]
[1642592136442,0.3,3105.4,3104.7,1.42812535]
[1642592136644,0.3,3105.8,3105.0,0.80511]
[1642592136839,0.3,3105.8,3105.4,1.75365287]
[1642592137039,0.9339156,3106.1,3105.4,2.05365287]
[1642592137040,1.1051156,3106.1,3105.4,2.05365287]
[1642592137238,1.1051156,3106.1,3105.5,0.00511581]
[1642592138041,1.13695425,3106.1,3105.5,0.00511581]
[1642592138340,1.13695425,3106.1,3105.6,2.73820942]
[1642592138540,1.13899729,3106.1,3105.6,3.03820942]
[1642592138740,1.13899729,3106.1,3105.7,2.74218839]
[1642592138941,4.33984795,3106.1,3105.8,2.73820942]
[1642592139144,4.3051156,3106.1,3105.8,2.74161996]
[1642592139384,4.33845811,3106.1,3105.9,0.00284212]
[1642592139583,4.6787,3106.0,3105.9,0.00284212]
[1642592140187,4.55,3106.0,3105.8,0.00341054]
[1642592140385,4.55,3106.0,3105.9,0.00284212]
[1642592140587,5.3551779,3106.0,3105.4,0.00568424]
[1642592140788,0.1287,3105.9,3105.5,2.73835444]
[1642592140987,0.1287,3105.9,3105.6,2.73835444]
[1642592141188,0.93395,3105.9,3105.6,0.00454739]
[1642592141588,0.93395,3105.9,3105.0,0.00795793]
[1642592141793,1.7391688,3105.9,3105.1,2.73836681]
[1642592141993,0.9657356,3105.9,3105.1,0.3]
[1642592142191,0.3,3105.8,3105.2,2.7451879]
[1642592142395,0.3,3105.8,3105.3,2.73836681]
[1642592142396,1.94529442,3105.8,3105.3,2.73836681]
[1642592142592,0.1288,3105.7,3105.3,2.74461947]
[1642592142792,0.1288,3105.7,3105.4,2.74405105]
[1642592142992,0.1288,3105.7,3105.5,2.73836681]
[1642592143242,0.9340439,3105.7,3105.5,0.00511581]
[1642592143444,1.77087412,3105.7,3105.5,0.00511581]
[1642592143645,0.3,3105.6,3104.6,0.01023163]
[1642592143842,0.1288,3105.5,3104.7,2.73853638]
[1642592144247,0.1288,3105.5,3104.8,0.00909478]
[1642592144450,0.1288,3105.5,3104.9,2.73853638]
[1642592144647,0.0788,3105.5,3104.9,3.03853638]
[1642592144847,0.3,3105.6,3105.0,2.74649431]
[1642592145046,0.3,3105.6,3105.1,2.73853638]
[1642592145248,0.3,3105.6,3105.1,2.74592589]
[1642592145551,0.3,3105.6,3104.5,1.49199802]
[1642592145552,1.7395224,3105.5,3105.2,0.00682109]
[1642592145749,0.1288,3105.5,3105.2,0.00682109]
[1642592145950,0.3,3105.4,3104.6,0.01023163]
[1642592146149,0.3,3105.6,3104.7,2.73867027]
[1642592146349,3.6764,3105.8,3105.7,1.45094003]
[1642592146553,0.1288,3106.0,3105.7,1.75094003]
[1642592146754,0.05384852,3106.8,3105.9,0.01282347]
[1642592146997,0.05384852,3106.8,3105.8,10.5162142]
[1642592146998,0.05384852,3106.8,3106.6,0.0121817]
[1642592147191,0.05384852,3106.8,3106.6,2.34313289]
[1642592147392,0.05384852,3106.8,3106.6,0.0121817]
[1642592147595,0.05384852,3106.8,3106.0,3.59444357]
[1642592147793,0.1287,3106.7,3106.0,0.0022737]
[1642592147995,0.1287,3106.7,3106.1,0.00170527]
[1642592148193,0.00113684,3106.6,3105.9,0.00284212]
[1642592148395,0.1287,3106.5,3105.9,0.00284212]
[1642592148795,0.1287,3106.5,3106.0,1.13722519]
[1642592148996,0.00113684,3106.6,3106.0,1.13722519]
[1642592149193,0.00113684,3106.6,3106.1,0.00170527]
[1642592149998,0.00113684,3106.6,3106.1,2.73972763]
[1642592150200,0.00113684,3106.6,3106.1,0.00170527]
[1642592150398,0.00113684,3106.6,3106.2,0.30113685]
[1642592150636,0.00113684,3106.6,3106.1,0.00170527]
[1642592151043,0.8050102,3106.3,3106.1,0.00170527]
[1642592152244,0.8050102,3106.3,3106.1,0.80659397]
[1642592152440,0.80491,3106.4,3106.2,2.73793152]
[1642592152641,1.10491,3106.4,3106.2,2.73906837]
[1642592152840,0.80491,3106.4,3106.2,2.73906837]
[1642592153246,0.80589684,3106.6,3106.3,3.2214471]
[1642592153444,0.80589684,3106.6,3106.4,4.00464112]
[1642592153445,0.00113684,3106.6,3106.4,4.00464112]
[1642592153643,0.00113684,3106.6,3106.5,10.16344606]
[1642592153844,0.00113684,3106.6,3106.5,10.46344606]
[1642592154398,0.00113684,3106.6,3106.5,11.55079056]
[1642592154596,0.00113684,3106.6,3106.5,12.35550056]
[1642592156498,0.00113684,3106.6,3106.5,9.12998602]
[1642592156701,0.00113684,3106.6,3106.5,4.92998602]
[1642592156900,0.00113684,3106.6,3106.5,4.58727602]
[1642592158533,0.00113684,3106.6,3106.5,7.62517995]
[1642592158934,0.00113684,3106.6,3106.5,7.57517995]
[1642592159536,0.00113684,3106.6,3106.5,8.37984995]
[1642592159941,0.00113684,3106.6,3106.5,5.34194602]
[1642592160338,0.00113684,3106.6,3106.5,8.36455825]
[1642592161235,0.00113684,3106.6,3106.5,5.34194602]
[1642592161901,0.00113684,3106.6,3106.5,4.00460152]
[1642592164196,2.3152194,3106.7,3106.6,6.8]
[1642592164401,2.3152194,3106.7,3106.6,9.99993152]
[1642592164601,2.3152194,3106.7,3106.6,11.31263924]
[1642592164804,0.05384852,3106.8,3106.7,10.85138936]
[1642592165000,1.2043,3108.2,3107.1,0.80446]
[1642592165001,0.1287,3107.8,3107.1,0.80446]
[1642592165207,7.4869,3108.3,3107.2,3.19993152]
[1642592165208,0.1287,3108.1,3107.2,3.19993152]
[1642592165399,0.80447,3107.7,3107.3,2.73793152]
[1642592165641,0.93317,3107.7,3107.4,0.462]
[1642592166241,3.3,3107.6,3106.6,0.1287]
[1642592166443,0.1287,3107.5,3106.8,3.19952261]
[1642592166642,0.80475,3107.4,3106.8,3.19952261]
[1642592166843,0.1287,3107.3,3106.9,2.73752261]
[1642592167046,0.13267897,3107.3,3106.9,2.73752261]
[1642592167249,0.00341054,3107.2,3106.1,0.1216]
[1642592167450,0.1287,3107.1,3106.1,0.80487]
[1642592167646,1.74127212,3107.1,3106.0,2.60964]
[1642592167851,0.0022737,3107.0,3106.8,2.73760688]
[1642592168248,0.00170527,3106.9,3106.8,2.73760688]
[1642592168452,0.00170527,3106.9,3106.8,7.9247545]
[1642592168649,0.00170527,3106.9,3106.8,5.73826408]
[1642592168851,0.1287,3107.6,3106.9,6.8]
[1642592169049,0.1287,3107.6,3107.0,8.97160688]
[1642592169248,0.00341054,3107.5,3107.1,2.73760688]
[1642592169506,0.1287,3108.7,3107.4,25.59]
[1642592169704,0.1287,3108.7,3107.6,18.79]
[1642592169907,0.00511582,3108.4,3108.2,1.38208308]
[1642592170102,0.00511582,3108.4,3108.3,0.462]
[1642592170304,0.1285,3109.1,3108.3,0.462]
[1642592170508,0.1285,3109.1,3108.4,3.89104052]
[1642592170704,0.1285,3109.1,3108.3,5.16362451]
[1642592170904,0.1285,3109.1,3108.3,6.24209873]
[1642592171102,0.1285,3109.1,3108.3,6.36369873]
[1642592171305,0.1285,3109.1,3108.5,1.60827]
[1642592171507,0.1285,3109.5,3108.6,5.01123939]
[1642592171804,0.13986847,3109.5,3108.7,1.6080783]
[1642592172002,0.13986847,3109.5,3109.0,1.3483743]
[1642592172205,0.13986847,3109.5,3109.1,0.462]
[1642592173009,0.13986847,3109.5,3109.1,1.26601]
[1642592173840,0.43986847,3109.5,3109.1,2.0699944]
[1642592174044,0.31136847,3109.5,3109.1,2.0699944]
[1642592175045,0.31136847,3109.5,3109.1,1.26601]
[1642592175943,0.31136847,3109.5,3109.1,0.462]
[1642592176345,0.01136847,3109.5,3109.1,0.462]
[1642592176545,0.81549847,3109.5,3109.1,0.462]
[1642592177295,0.81549847,3109.5,3109.1,1.97715665]
[1642592177796,0.81549847,3109.5,3109.3,0.80401]
[1642592177995,0.01136847,3109.5,3109.2,3.31071052]
[1642592178594,0.01136847,3109.5,3109.2,0.462]
[1642592179404,0.01136847,3109.5,3109.3,3.13233962]
[1642592179598,0.01136847,3109.5,3109.2,0.762]
[1642592179599,0.01136847,3109.5,3109.4,5.262]
[1642592179799,3.01136847,3109.5,3109.4,4.682]
[1642592179999,3.01136847,3109.5,3109.4,5.562]
[1642592180650,3.01136847,3109.5,3109.4,1.8884]
[1642592180844,3.01136847,3109.5,3109.4,1.762]
[1642592181643,3.01136847,3109.5,3109.4,0.462]
[1642592182944,3.01136847,3109.5,3109.0,0.1285]
[1642592183144,3.01136847,3109.5,3108.7,1.73221]
[1642592183145,3.81555847,3109.5,3108.8,0.5905]
[1642592183349,0.01080005,3109.4,3108.9,0.80412]
[1642592183544,0.01080005,3109.4,3109.0,0.462]
[1642592183745,0.01023163,3109.3,3109.0,0.462]
[1642592184144,3.0,3109.5,3109.0,0.462]
[1642592184145,0.8138132,3109.2,3109.0,0.462]
[1642592184590,0.00909478,3109.1,3109.0,0.462]
[1642592184789,0.00909478,3109.1,3109.0,4.262]
[1642592186194,0.00909478,3109.1,3109.0,5.6905]
[1642592186395,0.00909478,3109.1,3109.0,5.8233]
[1642592186594,0.00909478,3109.1,3109.0,7.03492376]
[1642592186794,0.00909478,3109.1,3109.0,7.03732376]
[1642592187196,0.00909478,3109.1,3109.0,8.03812376]
[1642592187496,0.00909478,3109.1,3109.0,8.03892376]
[1642592187796,0.00909478,3109.1,3109.0,8.03812376]
[1642592187995,0.00909478,3109.1,3109.0,8.04052376]
[1642592188240,0.00909478,3109.1,3109.0,8.03652376]
[1642592188444,0.00909478,3109.1,3109.0,8.04052376]
[1642592188644,0.00909478,3109.1,3109.0,8.03972376]
[1642592188844,0.1285,3110.1,3109.1,7.60379]
[1642592189046,0.1285,3110.1,3109.4,5.772]
[1642592189245,0.1285,3110.1,3109.5,0.462]
[1642592189444,0.1285,3110.1,3109.5,7.234]
[1642592189647,0.1285,3110.1,3109.6,0.1416]
[1642592189844,0.1285,3110.1,3109.8,2.08906049]
[1642592190045,0.1285,3110.1,3109.9,0.462]
[1642592190547,0.1285,3110.1,3109.9,1.5876]
[1642592190746,0.1285,3110.1,3109.9,1.586]
[1642592190946,0.1285,3110.1,3110.0,4.1708]
[1642592191151,0.1285,3110.1,3110.0,5.9344]
[1642592191346,0.13418423,3110.1,3110.0,5.812]
[1642592192791,0.13418423,3110.1,3110.0,5.9352]
[1642592193192,0.13418423,3110.1,3110.0,5.812]
[1642592193393,0.13418423,3110.1,3110.0,5.9405]
[1642592193594,0.13418423,3110.1,3110.0,5.812]
[1642592194396,0.13418423,3110.1,3110.0,5.9328]
[1642592194598,0.13418423,3110.1,3110.0,5.812]
[1642592194797,0.13418423,3110.1,3110.0,5.9352]
[1642592194997,0.13418423,3110.1,3110.0,5.812]
[1642592195197,0.13418423,3110.1,3110.0,5.9368]
[1642592195415,0.13418423,3110.1,3110.0,5.9344]
[1642592195841,0.13418423,3110.1,3110.0,5.9328]
[1642592196042,0.13418423,3110.1,3110.0,6.936]
[1642592196640,0.13418423,3110.1,3110.0,6.9352]
[1642592196841,0.13418423,3110.1,3110.0,6.636]
[1642592197045,0.13418423,3110.1,3110.0,6.6352]
[1642592197246,0.13418423,3110.1,3110.0,6.512]
[1642592197848,0.13418423,3110.1,3110.0,6.6336]
[1642592198049,0.13418423,3110.1,3110.0,6.6376]
[1642592198248,0.13418423,3110.1,3110.0,6.512]
[1642592198451,1.3775,3111.2,3110.1,6.8]
[1642592198650,1.3775,3111.2,3110.4,2.4106706]
[1642592198850,1.3775,3111.2,3110.7,0.80355]
[1642592199055,1.3775,3111.2,3110.8,0.462]
[1642592199250,0.1286,3111.2,3110.8,0.462]
[1642592200092,0.1286,3111.2,3110.9,1.0]
[1642592200294,0.1286,3111.2,3111.0,1.26557]
[1642592201198,1.1498,3112.1,3111.0,1.26557]
[1642592201199,0.1285,3112.0,3111.0,1.26557]
[1642592201397,0.1285,3112.0,3111.3,0.80342]
[1642592201599,0.13930005,3112.0,3111.4,0.462]
[1642592201895,0.80342,3111.9,3111.4,0.462]
[1642592202096,0.1285,3111.8,3111.4,0.462]
[1642592202296,0.0096632,3111.8,3111.4,0.462]
[1642592202494,0.00909478,3111.7,3111.4,0.462]
[1642592202897,0.00852636,3111.6,3111.5,0.80342]
[1642592203142,0.00852636,3111.6,3111.5,1.26542]
[1642592203738,0.00852636,3111.6,3111.5,0.462]
[1642592204342,0.00852636,3111.6,3111.0,1.1285]
[1642592204540,0.3,3111.4,3111.0,1.1285]
[1642592204741,0.1285,3111.3,3111.0,1.1285]
[1642592204939,0.13532109,3111.3,3111.0,1.1285]
[1642592205139,0.00625266,3111.2,3111.0,0.1285]
[1642592205340,5.40061258,3111.1,3111.0,0.1285]
[1642592205541,5.40629682,3111.1,3111.0,0.1285]
[1642592205742,5.70629682,3111.1,3111.0,0.1285]
[1642592206042,5.70629682,3111.1,3110.4,1.60731]
[1642592206440,0.00511582,3111.0,3110.4,1.60731]
[1642592206745,0.00454739,3110.9,3110.4,1.60731]
[1642592207000,0.00454739,3110.9,3110.0,0.1285]
[1642592207001,0.1285,3110.8,3110.0,0.1285]
[1642592207200,0.1285,3110.8,3109.9,1.6076]
[1642592207201,0.13247897,3110.8,3109.9,1.6076]
[1642592207396,0.00341055,3110.7,3109.9,1.6076]
[1642592207596,0.1285,3110.6,3109.9,1.6076]
[1642592207798,0.13134212,3110.6,3109.9,1.6076]
[1642592207996,0.8061237,3110.5,3109.9,2.4113836]
[1642592208395,0.00170528,3110.4,3109.9,2.4113836]
[1642592208597,0.00170528,3110.4,3110.0,0.1285]
[1642592208598,0.30170528,3110.4,3110.0,0.1285]
[1642592208797,0.00113685,3110.3,3110.0,0.1285]
[1642592208998,0.00113685,3110.3,3110.1,1.0]
[1642592208999,0.80493685,3110.3,3110.1,1.0]
[1642592209598,0.80493685,3110.3,3110.1,1.80377]
[1642592210097,0.00113685,3110.3,3110.2,0.1285]
[1642592210498,0.00113685,3110.3,3110.2,2.8785]
[1642592210736,0.00113685,3110.3,3110.2,0.1285]
[1642592210942,0.00113685,3110.3,3110.2,1.1285]
[1642592211139,0.00113685,3110.3,3110.2,0.1285]
[1642592212342,0.00113685,3110.3,3110.1,2.036012]
[1642592214148,0.00113685,3110.3,3110.2,8.46945]
[1642592214407,0.00113685,3110.3,3110.2,8.59345]
[1642592214598,0.00113685,3110.3,3110.2,9.59425]
[1642592214797,0.00113685,3110.3,3110.2,9.59585]
[1642592214995,0.00113685,3110.3,3110.2,13.3304217]
[1642592215198,0.1285,3111.4,3110.2,13.3304217]
[1642592215199,0.93203,3111.4,3110.5,0.80352]
[1642592215401,0.80353,3111.4,3110.6,0.5905]
[1642592215600,0.00341054,3110.9,3110.7,2.7345717]
[1642592215799,0.00341054,3110.9,3110.8,5.712]
[1642592215999,0.80353,3111.4,3110.9,1.34382523]
[1642592216200,0.80353,3111.4,3111.1,0.80354]
[1642592216400,1.61287424,3111.3,3111.1,0.80354]
[1642592216601,1.61287424,3111.3,3111.0,1.462]
[1642592216800,1.61287424,3111.3,3111.0,0.462]
[1642592216801,0.00511581,3111.2,3111.0,0.462]
[1642592217001,0.00511581,3111.2,3111.0,1.462]
[1642592217205,0.00454739,3111.1,3111.0,0.462]
[1642592217401,0.00454739,3111.1,3111.0,1.462]
[1642592217702,0.00454739,3111.1,3111.0,0.462]
[1642592217902,0.00454739,3111.1,3111.0,1.462]
[1642592218943,0.00454739,3111.1,3111.0,0.462]
[1642592219545,0.00454739,3111.1,3111.0,4.11553]
[1642592219747,0.00454739,3111.1,3111.0,1.26553]
[1642592220345,0.00454739,3111.1,3111.0,0.462]
[1642592221545,0.00454739,3111.1,3111.0,1.26561]
[1642592222423,0.00454739,3111.1,3111.0,2.79311958]
[1642592222618,0.00454739,3111.1,3111.0,3.79311958]
[1642592226440,0.00454739,3111.1,3111.0,3.91391958]
[1642592226642,0.00454739,3111.1,3111.0,3.79311958]
[1642592227247,0.00454739,3111.1,3111.0,1.26561]
[1642592227447,0.00454739,3111.1,3111.0,0.462]
[1642592228446,2.65454739,3111.1,3111.0,0.462]
[1642592228647,2.65454739,3111.1,3110.7,1.0]
[1642592228648,3.3956393,3111.1,3110.7,1.0]
[1642592229046,0.00397897,3111.0,3110.7,1.0]
[1642592229245,1.73608,3110.9,3110.3,1.0]
[1642592229514,0.00284212,3110.8,3110.3,1.0]
[1642592229712,0.1285,3110.7,3110.3,1.0]
[1642592229914,0.0022737,3110.7,3110.3,1.80377]
[1642592230219,0.00170527,3110.6,3110.3,0.80377]
[1642592230613,0.00113685,3110.5,3110.3,0.80377]
[1642592231015,0.00170527,3110.6,3110.3,0.80377]
[1642592231418,0.00113685,3110.5,3110.3,0.80377]
[1642592231715,0.00341054,3110.9,3110.3,0.80377]
[1642592232119,0.00284212,3110.8,3110.3,0.80377]
[1642592232528,0.0022737,3110.7,3110.3,0.80377]
[1642592232725,0.0022737,3110.7,3110.4,2.73458724]
[1642592232920,0.00170527,3110.6,3110.5,0.80363]
[1642592233147,0.00170527,3110.6,3110.5,3.53815306]
[1642592233541,0.00170527,3110.6,3110.5,0.80363]
[1642592233742,0.00170527,3110.6,3110.2,0.1285]
[1642592233942,0.00170527,3110.6,3110.3,2.734655]
[1642592234243,0.00113685,3110.5,3110.3,2.734655]
[1642592234646,0.00170527,3110.6,3110.3,2.734655]
[1642592234847,0.80550527,3110.6,3110.3,2.734655]
[1642592235047,0.00113685,3110.5,3110.2,0.1285]
[1642592235251,0.00113685,3110.5,3110.4,0.80375]
[1642592235446,0.00113685,3110.5,3110.2,1.73594]
[1642592235447,1.60873685,3110.5,3110.2,1.73594]
[1642592235847,1.59567502,3110.5,3110.3,2.73470352]
[1642592236048,0.00113685,3110.5,3110.3,2.73470352]
[1642592236648,0.00113685,3110.5,3110.2,1.73594]
[1642592236892,0.00113685,3110.5,3110.2,1.60744]
[1642592237500,0.00113685,3110.5,3110.0,1.73604]
[1642592237698,0.00113685,3110.5,3110.1,2.73474546]
[1642592237903,0.00113685,3110.5,3110.1,2.73588231]
[1642592238698,1.60874685,3110.5,3110.1,2.73588231]
[1642592239399,0.80491685,3110.5,3110.2,0.80378]
[1642592240650,0.80491685,3110.5,3110.3,2.73469067]
[1642592244693,0.80491685,3110.5,3110.3,4.34209067]
[1642592244694,0.00113685,3110.5,3110.3,4.34209067]
[1642592244895,0.00113685,3110.5,3110.4,2.73469067]
[1642592245295,0.00113685,3110.5,3110.1,0.80496685]
[1642592245495,0.00113685,3110.5,3110.2,2.7346434]
[1642592245895,1.60881685,3110.5,3110.2,2.7346434]
[1642592246098,0.3,3110.4,3110.2,2.7346434]
[1642592246300,0.3,3110.4,3110.1,0.00113685]
[1642592246501,0.1285,3110.3,3110.1,0.00113685]
[1642592246702,0.1285,3110.3,3110.0,0.00170527]
[1642592247002,4.79368,3110.3,3109.7,0.00341054]
[1642592247201,0.8040637,3110.2,3109.7,2.73854888]
[1642592247402,0.1285,3110.1,3109.7,0.00341054]
[1642592247601,0.1285,3110.1,3109.8,0.00284212]
[1642592247803,0.1285,3110.1,3109.3,2.86366484]
[1642592248004,0.1285,3110.1,3109.4,2.73516484]
[1642592248258,0.1285,3110.1,3109.4,2.74028065]
[1642592248453,0.80405,3110.0,3109.5,2.73971223]
[1642592248655,0.1285,3109.9,3109.6,2.73522216]
[1642592248854,0.1285,3109.9,3109.6,0.00397896]
[1642592249054,0.4285,3109.9,3109.7,0.00341054]
[1642592249257,0.4285,3109.9,3109.3,2.73524507]
[1642592249455,0.1285,3109.9,3109.3,2.7409293]
[1642592249655,0.1285,3109.9,3109.4,2.74036088]
[1642592249854,0.1285,3109.9,3109.5,2.73524507]
[1642592250056,0.93261,3109.9,3109.5,2.73979246]
[1642592250356,0.93261,3109.9,3109.6,2.73905846]
[1642592250555,0.80411,3109.9,3109.6,0.00397896]
[1642592250759,0.80411,3109.9,3109.7,2.73837871]
[1642592250957,10.023,3110.2,3109.8,2.73496817]
[1642592251156,10.023,3110.2,3110.0,0.80379]
[1642592251157,3.9051,3110.2,3110.0,0.80379]
[1642592251556,3.9051,3110.2,3110.1,2.73473818]
[1642592251757,3.8612,3110.3,3110.1,2.73473818]
[1642592251998,0.8038,3110.4,3109.9,1.72918]
[1642592252200,0.8038,3110.4,3110.0,2.73470855]
[1642592252401,0.8038,3110.4,3110.0,0.00170527]
[1642592253698,0.8038,3110.4,3109.8,2.86340034]
[1642592253699,0.8038,3110.4,3109.9,0.00227369]
[1642592254100,0.8038,3110.4,3109.9,2.73489976]
[1642592254299,0.8038,3110.4,3109.9,3.73717345]
[1642592254501,0.8038,3110.4,3110.0,2.73660503]